[Event "DVM U20w 2021"]
[Site "Kiel"]
[Date "2022.07.23"]
[Round "2"]
[White "Wilmink, Anna"]
[Black "Margaryan, Susanna"]
[Result "1-0"]
[ECO "B10"]
[WhiteElo "1692"]
[BlackElo "1436"]
[Annotator "NA RC COMBH"]
[PlyCount "79"]
[EventDate "2022.07.23"]
[EventType "team-tourn"]
[EventRounds "7"]
[EventCountry "GER"]
[SourceTitle "playchess.com"]
[Source "ChessBase"]
[SourceQuality "1"]
[TimeControl "40/5400+30:1800+30"]

1. e4 {[%emt 0:00:01]} c6 {[%emt 0:00:06]} 2. Nf3 {[%emt 0:00:07]} d5 {[%emt 0:00:04]} 3. d3 {[%emt 0:00:15]} dxe4 {[%emt 0:00:07]} 4. dxe4 {[%emt 0:00:06]} Qxd1+ {[%emt 0:00:15]} 5. Kxd1 {[%emt 0:00:06]} Bg4 {[%emt 0:00:44]} 6. Be2 {[%emt 0:00:09]} Nd7 {[%emt 0:00:45]} 7. Ne1 {[%emt 0:00:14]} Bxe2+ {[%emt 0:01:23]} 8. Kxe2 {[%emt 0:00:11]} Ngf6 {[%emt 0:00:06]} 9. f3 {[%emt 0:00:11]} e5 {[%emt 0:00:54]} 10. Nd3 {[%emt 0:00:32]} Bd6 {[%emt 0:01:11]} 11. Be3 {[%emt 0:00:29]} h6 {[%emt 0:00:54]} 12. Nd2 {[%emt 0:01:38]} O-O-O {[%emt 0:02:31]} 13. a4 {[%emt 0:01:22]} g5 {[%emt 0:00:34]} 14. b4 {[%emt 0:02:53]} g4 {[%emt 0:04:29]} 15. b5 {[%emt 0:05:09]} c5 {[%emt 0:00:25]} 16. Nc4 {[%emt 0:01:30]} gxf3+ {[%emt 0:01:33]} 17. gxf3 {[%emt 0:00:44]} Kc7 {[%emt 0:00:45]} 18. Rad1 {[%emt 0:09:26]} b6 {[%emt 0:03:45]} 19. Nxd6 {[%emt 0:04:16]} Kxd6 {[%emt 0:00:13]} 20. Nxc5+ {[%emt 0:01:32]} Kc7 {[%emt 0:00:27]} 21. Na6+ {[%emt 0:01:46]} Kb7 {[%emt 0:00:23]} 22. Rd6 {[%emt 0:03:21]} Rc8 {[%emt 0:00:58]} 23. Rc1 {[%emt 0:08:13]} Rc4 {[%emt 0:01:19]} 24. Ke1 {[%emt 0:05:37]} Rxa4 {[%emt 0:00:37]} 25. Rcd1 {[%emt 0:01:08]} Kc8 {[%emt 0:01:41]} 26. Rc6+ {[%emt 0:01:15]} Kd8 {[%emt 0:01:17]} 27. Rxf6 {[%emt 0:00:50]} Ke7 {[%emt 0:00:25]} 28. Rc6 {[%emt 0:05:26]} Rg8 {[%emt 0:04:05]} 29. Rc7 {[%emt 0:01:44]} Rd8 {[%emt 0:01:32]} 30. Rxa7 {[%emt 0:00:59]} Rc4 {[%emt 0:01:46]} 31. Bxb6 {[%emt 0:01:38]} Rdc8 {[%emt 0:00:28]} 32. Raxd7+ {[%emt 0:01:00]} Ke8 {[%emt 0:00:27]} 33. Rd8+ {[%emt 0:00:37]} Rxd8 {[%emt 0:00:10]} 34. Rxd8+ {[%emt 0:00:04]} Ke7 {[%emt 0:00:12]} 35. Kd2 {[%emt 0:00:36]} Ra4 {[%emt 0:00:47]} 36. Rd5 {[%emt 0:01:03]} f6 {[%emt 0:00:43]} 37. Bd8+ {[%emt 0:01:31]} Kf7 {[%emt 0:00:18]} 38. Nc5 {[%emt 0:01:01]} Ra8 {[%emt 0:01:02]} 39. b6 {[%emt 0:00:19]} Ke8 {[%emt 0:00:36]} 40. Bc7 {[%emt 0:00:12]} 1-0

[Event "DVM U20w 2021"]
[Site "Kiel"]
[Date "2022.07.23"]
[Round "2"]
[White "Sickmann, Lisa"]
[Black "Grining, Maria"]
[Result "1-0"]
[ECO "B07"]
[WhiteElo "1672"]
[BlackElo "1750"]
[Annotator "NA RC COMBH"]
[PlyCount "81"]
[EventDate "2022.07.23"]
[EventType "team-tourn"]
[EventRounds "7"]
[EventCountry "GER"]
[SourceTitle "playchess.com"]
[Source "ChessBase"]
[SourceQuality "1"]
[TimeControl "40/5400+30:1800+30"]

1. e4 {[%emt 0:00:02]} d6 {[%emt 0:00:06]} 2. d4 {[%emt 0:00:08]} Nd7 {[%emt 0:00:06]} 3. g3 {[%emt 0:00:29]} e5 {[%emt 0:00:12]} 4. Nf3 {[%emt 0:00:16]} c6 {[%emt 0:00:37]} 5. Bg2 {[%emt 0:00:11]} Be7 {[%emt 0:00:56]} 6. O-O {[%emt 0:00:19]} Ngf6 {[%emt 0:00:20]} 7. Nc3 {[%emt 0:00:10]} h6 {[%emt 0:00:52]} 8. b3 {[%emt 0:01:21]} Qc7 {[%emt 0:02:12]} 9. Bb2 {[%emt 0:00:16]} Nf8 {[%emt 0:01:49]} 10. Qd3 {[%emt 0:10:16]} Ng6 {[%emt 0:08:41]} 11. Ne2 {[%emt 0:04:36]} O-O {[%emt 0:06:16]} 12. c4 {[%emt 0:01:06]} exd4 {[%emt 0:03:30]} 13. Nexd4 {[%emt 0:01:52]} Re8 {[%emt 0:13:27]} 14. Rad1 {[%emt 0:03:49]} Bg4 {[%emt 0:08:56]} 15. h3 {[%emt 0:03:39]} Ne5 {[%emt 0:01:25]} 16. Qe3 {[%emt 0:00:52]} Nxf3+ {[%emt 0:01:47]} 17. Nxf3 {[%emt 0:00:23]} Bxf3 {[%emt 0:04:11]} 18. Qxf3 {[%emt 0:00:55]} Nd7 {[%emt 0:01:03]} 19. Rfe1 {[%emt 0:01:15]} Bf6 {[%emt 0:01:35]} 20. Bc1 {[%emt 0:17:18]} Ne5 {[%emt 0:02:17]} 21. Qf5 {[%emt 0:01:55]} Re6 {[%emt 0:03:53]} 22. Qh5 {[%emt 0:02:45]} Ng6 {[%emt 0:06:37]} 23. f4 {[%emt 0:01:40]} Nf8 {[%emt 0:02:50]} 24. Kh2 {[%emt 0:00:38]} g6 {[%emt 0:04:41]} 25. Qxh6 {[%emt 0:01:55]} Qa5 {[%emt 0:03:15]} 26. a3 {[%emt 0:01:47]} Qc5 {[%emt 0:02:20]} 27. a4 {[%emt 0:07:45]} Qb4 {[%emt 0:03:24]} 28. f5 {[%emt 0:01:45]} gxf5 {[%emt 0:00:53]} 29. Bd2 {[%emt 0:04:08]} Bc3 {[%emt 0:04:32]} 30. Qg5+ {[%emt 0:07:45]} Rg6 {[%emt 0:00:24]} 31. Qf4 {[%emt 0:02:14]} Bxd2 {[%emt 0:03:36]} 32. Rxd2 {[%emt 0:00:44]} fxe4 {[%emt 0:04:58]} 33. Bxe4 {[%emt 0:02:04]} Re6 {[%emt 0:00:08]} 34. Rf1 {[%emt 0:03:32]} f6 {[%emt 0:01:36]} 35. Bf5 {[%emt 0:08:41]} Re5 {[%emt 0:00:58]} 36. Rdf2 {[%emt 0:02:52]} Rae8 {[%emt 0:01:07]} 37. Qg4+ {[%emt 0:00:45]} Kh8 {[%emt 0:01:08]} 38. Bg6 {[%emt 0:02:26]} Nxg6 {[%emt 0:01:17]} 39. Qxg6 {[%emt 0:00:30]} f5 {[%emt 0:00:12]} 40. Rxf5 {[%emt 0:00:56]} Re2+ {[%emt 0:01:10]} 41. Kh1 {[%emt 0:30:13]} 1-0

[Event "DVM U20w 2021"]
[Site "Kiel"]
[Date "2022.07.23"]
[Round "2"]
[White "Albayrak, Nese Pinar"]
[Black "Rudolph, Eva"]
[Result "0-1"]
[ECO "B43"]
[WhiteElo "1651"]
[BlackElo "1892"]
[Annotator "NA RC COMBH"]
[PlyCount "64"]
[EventDate "2022.07.23"]
[EventType "team-tourn"]
[EventRounds "7"]
[EventCountry "GER"]
[SourceTitle "playchess.com"]
[Source "ChessBase"]
[SourceQuality "1"]
[TimeControl "40/5400+30:1800+30"]

1. e4 {[%emt 0:00:02]} c5 {[%emt 0:00:07]} 2. Nf3 {[%emt 0:00:09]} e6 {[%emt 0:00:06]} 3. d4 {[%emt 0:00:05]} cxd4 {[%emt 0:00:04]} 4. Nxd4 {[%emt 0:00:09]} a6 {[%emt 0:00:08]} 5. Nc3 {[%emt 0:00:20]} Qc7 {[%emt 0:00:05]} 6. Be3 {[%emt 0:01:05]} Bb4 {[%emt 0:00:15]} 7. Bd2 {[%emt 0:10:52]} Nf6 {[%emt 0:01:38]} 8. Bd3 {[%emt 0:00:40]} b5 {[%emt 0:05:13]} 9. O-O {[%emt 0:04:52]} Be7 {[%emt 0:03:26]} 10. Kh1 {[%emt 0:13:48]} Bb7 {[%emt 0:02:44]} 11. a3 {[%emt 0:05:32]} d6 {[%emt 0:03:18]} 12. f4 {[%emt 0:05:52]} Nbd7 {[%emt 0:02:32]} 13. Qe2 {[%emt 0:06:10]} Rc8 {[%emt 0:10:25]} 14. Rae1 {[%emt 0:06:06]} Nc5 {[%emt 0:03:14]} 15. e5 {[%emt 0:11:52]} Nd5 {[%emt 0:01:25]} 16. f5 {[%emt 0:06:58]} Nxd3 {[%emt 0:04:24]} 17. exd6 {[%emt 0:15:01]} Nxc3 {[%emt 0:15:49]} 18. Bxc3 {[%emt 0:02:04]} Qxd6 {[%emt 0:03:36]} 19. cxd3 {[%emt 0:01:02]} e5 {[%emt 0:20:45]} 20. Qxe5 {[%emt 0:01:26]} Qxe5 {[%emt 0:00:53]} 21. Rxe5 {[%emt 0:00:02]} f6 {[%emt 0:00:21]} 22. Re2 {[%emt 0:01:32]} Kf7 {[%emt 0:01:15]} 23. Rfe1 {[%emt 0:00:53]} Rhe8 {[%emt 0:01:01]} 24. Ne6 {[%emt 0:02:28]} Bd6 {[%emt 0:01:14]} 25. Kg1 {[%emt 0:01:54]} Bd5 {[%emt 0:03:44]} 26. Bd2 {[%emt 0:01:50]} Rc2 {[%emt 0:06:11]} 27. Bf4 {[%emt 0:00:39]} Bc5+ {[%emt 0:03:51]} 28. d4 {[%emt 0:00:15]} Rxe2 {[%emt 0:00:16]} 29. Rxe2 {[%emt 0:00:05]} Bb6 {[%emt 0:00:19]} 30. Kf1 {[%emt 0:01:10]} Bc4 {[%emt 0:00:21]} 31. Be3 {[%emt 0:00:32]} g6 {[%emt 0:00:41]} 32. Nf4 {[%emt 0:00:33]} Rxe3 {[%emt 0:00:24]} 0-1

[Event "DVM U20w 2021"]
[Site "Kiel"]
[Date "2022.07.23"]
[Round "2"]
[White "Malinowsky, Celina"]
[Black "Hoffmann, Sophia"]
[Result "0-1"]
[ECO "C54"]
[WhiteElo "1519"]
[BlackElo "1214"]
[Annotator "NA RC COMBH"]
[PlyCount "80"]
[EventDate "2022.07.23"]
[EventType "team-tourn"]
[EventRounds "7"]
[EventCountry "GER"]
[SourceTitle "playchess.com"]
[Source "ChessBase"]
[SourceQuality "1"]
[TimeControl "40/5400+30:1800+30"]

1. e4 {[%emt 0:00:04]} e5 {[%emt 0:00:04]} 2. Nf3 {[%emt 0:00:08]} Nc6 {[%emt 0:00:05]} 3. Bc4 {[%emt 0:00:05]} Bc5 {[%emt 0:00:08]} 4. c3 {[%emt 0:00:08]} Nf6 {[%emt 0:00:08]} 5. d3 {[%emt 0:00:08]} d6 {[%emt 0:00:06]} 6. Nbd2 {[%emt 0:00:50]} Be6 {[%emt 0:00:34]} 7. Bxe6 {[%emt 0:01:40]} fxe6 {[%emt 0:00:08]} 8. Qb3 {[%emt 0:00:11]} Qc8 {[%emt 0:02:09]} 9. O-O {[%emt 0:02:49]} O-O {[%emt 0:01:22]} 10. Re1 {[%emt 0:02:11]} Bb6 {[%emt 0:03:56]} 11. Nf1 {[%emt 0:01:51]} Qe8 {[%emt 0:04:58]} 12. Ng3 {[%emt 0:02:16]} Ng4 {[%emt 0:10:12]} 13. Re2 {[%emt 0:01:52]} Qg6 {[%emt 0:02:46]} 14. Be3 {[%emt 0:06:37]} Nxe3 {[%emt 0:02:41]} 15. fxe3 {[%emt 0:00:34]} Rf6 {[%emt 0:03:59]} 16. Rf1 {[%emt 0:06:02]} Raf8 {[%emt 0:02:33]} 17. Nf5 {[%emt 0:09:27]} Qg4 {[%emt 0:06:53]} 18. Ng3 {[%emt 0:04:47]} h5 {[%emt 0:02:35]} 19. Nf5 {[%emt 0:05:48]} Na5 {[%emt 0:04:42]} 20. h3 {[%emt 0:06:07]} Qxf3 {[%emt 0:07:17]} 21. Rxf3 {[%emt 0:02:57]} Nxb3 {[%emt 0:00:13]} 22. Ne7+ {[%emt 0:00:26]} Kf7 {[%emt 0:00:50]} 23. axb3 {[%emt 0:02:39]} Rxf3 {[%emt 0:01:15]} 24. gxf3 {[%emt 0:00:12]} Kxe7 {[%emt 0:00:09]} 25. Kg2 {[%emt 0:00:15]} h4 {[%emt 0:01:08]} 26. d4 {[%emt 0:00:42]} exd4 {[%emt 0:01:26]} 27. exd4 {[%emt 0:00:28]} Rf6 {[%emt 0:02:34]} 28. Re1 {[%emt 0:02:03]} Rg6+ {[%emt 0:01:44]} 29. Kf2 {[%emt 0:00:33]} e5 {[%emt 0:01:48]} 30. Ke3 {[%emt 0:01:10]} Rg2 {[%emt 0:03:47]} 31. Rh1 {[%emt 0:00:45]} Rxb2 {[%emt 0:00:40]} 32. Rg1 {[%emt 0:00:12]} Kf6 {[%emt 0:01:40]} 33. Rg4 {[%emt 0:03:52]} g5 {[%emt 0:01:10]} 34. Kd3 {[%emt 0:00:58]} Rh2 {[%emt 0:01:54]} 35. Rg1 {[%emt 0:01:41]} Rxh3 {[%emt 0:00:42]} 36. Rf1 {[%emt 0:00:30]} g4 {[%emt 0:01:02]} 37. Ke2 {[%emt 0:02:13]} Rxf3 {[%emt 0:02:26]} 38. Rg1 {[%emt 0:00:28]} Kg5 {[%emt 0:01:03]} 39. dxe5 {[%emt 0:01:38]} Bxg1 {[%emt 0:00:24]} 40. e6 {[%emt 0:00:06]} Kf6 {[%emt 0:00:20]} 0-1

[Event "DVM U20w 2021"]
[Site "Kiel"]
[Date "2022.07.23"]
[Round "2"]
[White "Eichhorn, Elisabeth"]
[Black "Rempe, Janne"]
[Result "0-1"]
[ECO "A46"]
[WhiteElo "1325"]
[BlackElo "1497"]
[Annotator "NA COMBH"]
[PlyCount "62"]
[EventDate "2022.07.23"]
[EventType "team-tourn"]
[EventRounds "7"]
[EventCountry "GER"]
[SourceTitle "playchess.com"]
[Source "ChessBase"]
[SourceQuality "1"]
[TimeControl "40/5400+30:1800+30"]

1. d4 {[%emt 0:00:02]} d6 {[%emt 0:00:15]} 2. Nf3 {[%emt 0:00:10]} Nf6 {[%emt 0:00:57]} 3. Bf4 {[%emt 0:00:20]} Nbd7 {[%emt 0:00:58]} 4. e3 {[%emt 0:00:46]} c6 {[%emt 0:00:26]} 5. Bd3 {[%emt 0:01:05]} Qc7 {[%emt 0:00:27]} 6. Bg3 {[%emt 0:05:27]} e5 {[%emt 0:01:57]} 7. Nbd2 {[%emt 0:04:24]} Be7 {[%emt 0:01:37]} 8. h3 {[%emt 0:02:18]} O-O {[%emt 0:03:38]} 9. c3 {[%emt 0:03:01]} exd4 {[%emt 0:04:41]} 10. cxd4 {[%emt 0:01:05]} Re8 {[%emt 0:05:36]} 11. Qc2 {[%emt 0:02:19]} Nf8 {[%emt 0:03:02]} 12. Ng5 {[%emt 0:04:37]} Ng6 {[%emt 0:01:21]} 13. Ndf3 {[%emt 0:08:26]} Nh5 {[%emt 0:01:32]} 14. Bh2 {[%emt 0:01:39]} Bxg5 {[%emt 0:00:38]} 15. Nxg5 {[%emt 0:00:20]} Qa5+ {[%emt 0:00:02]} 16. Qc3 {[%emt 0:02:43]} Qxg5 {[%emt 0:00:07]} 17. g4 {[%emt 0:10:46]} Nhf4 {[%emt 0:02:06]} 18. Bf1 {[%emt 0:01:53]} Nd5 {[%emt 0:02:36]} 19. Qd2 {[%emt 0:03:20]} c5 {[%emt 0:14:23]} 20. O-O-O {[%emt 0:04:03]} cxd4 {[%emt 0:01:25]} 21. Qxd4 {[%emt 0:02:19]} Be6 {[%emt 0:02:12]} 22. Bg2 {[%emt 0:05:30]} Rac8+ {[%emt 0:02:59]} 23. Kb1 {[%emt 0:01:08]} Nb6 {[%emt 0:03:57]} 24. f4 {[%emt 0:03:23]} Qa5 {[%emt 0:02:30]} 25. a3 {[%emt 0:04:16]} Nc4 {[%emt 0:04:14]} 26. Rd3 {[%emt 0:07:38]} Rc5 {[%emt 0:05:04]} 27. Rc3 {[%emt 0:11:45]} Rb5 {[%emt 0:04:23]} 28. Kc1 {[%emt 0:04:07]} Rxb2 {[%emt 0:05:05]} 29. Kd1 {[%emt 0:00:51]} Rxg2 {[%emt 0:03:14]} 30. Rxc4 {[%emt 0:02:37]} Bxc4 {[%emt 0:00:13]} 31. Qxc4 {[%emt 0:00:09]} Qd2# {[%emt 0:00:41]} 0-1

[Event "DVM U20w 2021"]
[Site "Kiel"]
[Date "2022.07.23"]
[Round "2"]
[White "Tabakh, Tassnim"]
[Black "Peglau, Dora"]
[Result "0-1"]
[ECO "A08"]
[WhiteElo "1241"]
[BlackElo "1920"]
[Annotator "TA"]
[PlyCount "30"]
[EventDate "2022.07.23"]
[EventType "team-tourn"]
[EventRounds "7"]
[EventCountry "GER"]
[SourceTitle "playchess.com"]
[Source "ChessBase"]
[SourceQuality "1"]
[TimeControl "40/5400+30:1800+30"]

{[%evp 9,30,-33,-25,-26,-10,-32,-34,-54,-52,-77,-40,-91,-80,-87,-81,-108,-89,-109,-110,-142,-146,-556,-570]} 1. g3 {[%emt 0:00:01]} d5 {[%emt 0:00:27]} 2. Bg2 {[%emt 0:00:10]} Nf6 {[%emt 0:00:18]} 3. Nf3 {[%emt 0:00:16]} c5 {[%emt 0:00:20]} 4. e3 {[%emt 0:00:33]} Nc6 {[%emt 0:00:40]} 5. d3 {[%emt 0:01:25]} g6 {[%emt 0:02:47]} 6. O-O {[%emt 0:01:30] A08: King's Indian Attack.} Bg7 {[%emt 0:00:11] [#]} 7. Re1 $146 {[%emt 0:01:09]} ({Predecessor:} 7. Nbd2 O-O 8. Re1 Qc7 9. c3 e5 10. Qc2 h6 11. e4 dxe4 12. dxe4 Be6 13. Nf1 {1-0 (31) Novotny,J (2130)-Hunacek,J (1872) Czech Republic 2012}) 7... O-O {[%emt 0:02:02]} 8. Qd2 {[%emt 0:04:10] Black is slightly better.} e5 {[%emt 0:01:22]} 9. Nc3 {[%emt 0:02:54]} h6 {[%emt 0:01:57]} 10. Kh1 {[%emt 0:01:40]} ({Better is} 10. d4 $15) 10... Be6 $36 {[%emt 0:01:21][%mdl 2048] Keeping White busy.} 11. e4 {[%emt 0:02:40]} d4 {[%emt 0:00:27]} 12. Ne2 {[%emt 0:00:17]} b5 {[%emt 0:03:03] Black is more active.} 13. b3 {[%emt 0:01:02]} c4 {[%emt 0:02:30]} 14. bxc4 {[%emt 0:00:47]} bxc4 {[%emt 0:00:14]} 15. dxc4 $2 {[%emt 0:03:01][%mdl 8192] [#]} (15. Nh4 $17 {is a better chance.}) 15... Nxe4 {[%emt 0:01:05] White got outplayed after the opening.  Weighted Error Value: White=0.91/Black=0.08 (flawless)} 0-1

[Event "DVM U20w 2021"]
[Site "Kiel"]
[Date "2022.07.23"]
[Round "2"]
[White "Xie, Kelly"]
[Black "Peglau, Charis"]
[Result "0-1"]
[ECO "B12"]
[WhiteElo "917"]
[BlackElo "1870"]
[Annotator "NA RC COMBH"]
[PlyCount "20"]
[EventDate "2022.07.23"]
[EventType "team-tourn"]
[EventRounds "7"]
[EventCountry "GER"]
[SourceTitle "playchess.com"]
[Source "ChessBase"]
[SourceQuality "1"]
[TimeControl "40/5400+30:1800+30"]

1. e4 {[%emt 0:00:02]} c6 {[%emt 0:00:05]} 2. d4 {[%emt 0:00:36]} d5 {[%emt 0:00:06]} 3. f3 {[%emt 0:01:01]} e6 {[%emt 0:00:09]} 4. Nc3 {[%emt 0:01:08]} Bb4 {[%emt 0:00:27]} 5. Bd2 {[%emt 0:01:07]} Bxc3 {[%emt 0:00:18]} 6. Bxc3 {[%emt 0:00:11]} dxe4 {[%emt 0:00:05]} 7. fxe4 {[%emt 0:00:06]} Qh4+ {[%emt 0:00:10]} 8. Kd2 {[%emt 0:07:01]} Qf4+ {[%emt 0:01:29]} 9. Kd3 {[%emt 0:03:52]} b6 {[%emt 0:01:12]} 10. g3 {[%emt 0:02:31]} Ba6# {[%emt 0:00:52]} 0-1

[Event "DVM U20w 2021"]
[Site "Kiel"]
[Date "2022.07.24"]
[Round "3"]
[White "Falke, Ornella"]
[Black "Sickmann, Lisa"]
[Result "1/2-1/2"]
[ECO "D02"]
[WhiteElo "1912"]
[BlackElo "1672"]
[Annotator "TA"]
[PlyCount "67"]
[EventDate "2022.07.23"]
[EventType "team-tourn"]
[EventRounds "7"]
[EventCountry "GER"]
[SourceTitle "playchess.com"]
[Source "ChessBase"]
[SourceQuality "1"]
[TimeControl "40/5400+30:1800+30"]

{[%evp 9,67,0,12,-5,23,14,40,36,45,41,36,43,44,41,57,28,85,56,105,105,226,114,122,102,104,68,57,54,108,112,122,134,133,76,81,56,68,45,38,42,35,29,103,99,101,7,7,7,7,7,7,10,10,0,16,0,7,0,13,0]} 1. d4 {[%emt 0:00:11]} d5 {[%emt 0:00:08]} 2. Bf4 {[%emt 0:01:08]} c5 {[%emt 0:00:21]} 3. e3 {[%emt 0:00:55]} Nc6 {[%emt 0:00:17]} 4. Nf3 {[%emt 0:03:47]} e6 {[%emt 0:01:27]} 5. Be2 {[%emt 0:03:51]} Qb6 {[%emt 0:00:39]} 6. Nc3 {[%emt 0:02:32] [#] Threatens to win with Nb5. D02: 1 d4 d5 2 Nf3 sidelines, including 2...Nf6 3 g3 and 2...Nf6 3 Bf4.} a6 {[%emt 0:01:10] Against Nb5} 7. O-O {[%emt 0:08:39]} Nf6 {[%emt 0:02:24]} (7... cxd4 8. exd4 (8. Nxd4 Bd7) 8... Nf6) 8. Na4 {[%emt 0:05:49] White is slightly better.} Qa5 {[%emt 0:01:25]} 9. Nxc5 {[%emt 0:06:53]} Bxc5 {[%emt 0:00:15]} 10. dxc5 {[%emt 0:00:04]} Qxc5 {[%emt 0:00:27] [#]} 11. c4 $146 {[%emt 0:01:19]} ({Predecessor:} 11. Ne5 O-O 12. Nxc6 bxc6 13. c4 a5 14. Rc1 Qb6 15. Be5 Nd7 16. Bd4 Qb4 17. Bc3 {1-0 (53) Danielian,E (2428)-Zimina,O (2408) Dresden 2004}) 11... O-O {[%emt 0:01:08]} 12. a3 {[%emt 0:03:51]} a5 {[%emt 0:01:57]} (12... Rd8 $11) 13. Rc1 $16 {[%emt 0:03:01]} Re8 {[%emt 0:04:26]} (13... Qe7 $14) 14. Ne5 {[%emt 0:02:38]} Ne7 {[%emt 0:14:05]} (14... Qe7 $16 {was worth a try.}) 15. Bf3 {[%emt 0:05:58]} (15. cxd5 Qxd5 16. Qc2) (15. cxd5 $18 Qxd5 16. Qc2) 15... Qb6 {[%emt 0:01:52]} 16. Qe2 {[%emt 0:05:33]} (16. Qc2 {is interesting.} Ng6 17. Rfd1 Nxf4 18. exf4 Rd8 19. cxd5 exd5 20. Qc7) 16... Ng6 {[%emt 0:01:31]} 17. Nxg6 {[%emt 0:02:41]} hxg6 {[%emt 0:00:09]} 18. Be5 {[%emt 0:01:24]} Qa6 {[%emt 0:01:59]} (18... Bd7 $1 $14) 19. Rfd1 {[%emt 0:05:29]} Nd7 {[%emt 0:04:13]} 20. Bc7 {[%emt 0:03:24] White is much more active. The black rooks are badly placed.} Nf6 {[%emt 0:00:18]} 21. Qd2 {[%emt 0:05:08]} (21. cxd5 $142 {Black must now prevent Qxa6.} Nxd5 22. Qxa6 Rxa6 23. h3 (23. Bxd5 exd5 24. Rxd5 a4 $16)) 21... dxc4 {[%emt 0:02:52]} 22. Qc2 {[%emt 0:07:03]} Bd7 {[%emt 0:01:23]} 23. Rd6 {[%emt 0:00:34]} Bc6 {[%emt 0:02:23]} ({Weaker is} 23... Qb5 24. Rb6 (24. Qxc4 Qxb2 25. Rb6 Qxa3 $14) 24... Qc5 25. Qxc4 Qxc4 26. Rxc4 $16) 24. Bxc6 {[%emt 0:01:50]} bxc6 {[%emt 0:00:09]} 25. Qxc4 {[%emt 0:00:13]} (25. Qa4 {with more complications.} c3 26. Rxc3 Rec8 27. Rdxc6 Qe2 28. Rc1) 25... Qxc4 {[%emt 0:00:36]} (25... Qb7 $11 {remains equal.} 26. Rxc6 (26. Qxc6 Qxb2 27. a4 Rec8 $15) 26... Qxb2) 26. Rxc4 {[%emt 0:00:05]} Ra6 {[%emt 0:00:24]} 27. Rcxc6 {[%emt 0:00:50]} ({Of course not} 27. Rdxc6 $6 Rxc6 28. Rxc6 Rc8 $11) ({White should play} 27. Bd8 $16) 27... Rxc6 $11 {[%emt 0:00:05] The position is equal.} 28. Rxc6 $16 {[%emt 0:00:03][%mdl 4096] Endgame KRB-KRN} Rc8 {[%emt 0:00:17]} 29. Rc5 {[%emt 0:01:17]} Ne4 {[%emt 0:00:51]} 30. Rc4 {[%emt 0:12:41]} Nd6 $1 {[%emt 0:01:41]} 31. Rc5 {[%emt 0:00:32]} Ne4 {[%emt 0:00:22]} 32. Rc4 {[%emt 0:00:53]} Nd6 $1 {[%emt 0:00:06]} 33. Rc5 {[%emt 0:00:04]} Ne4 {[%emt 0:00:17]} 34. Rc4 {[%emt 0:00:56] Weighted Error Value: White=0.21 (precise) /Black=0.22 (precise)} 1/2-1/2

[Event "DVM U20w 2021"]
[Site "Kiel"]
[Date "2022.07.24"]
[Round "3"]
[White "Rudolph, Eva"]
[Black "Basovskiy, Jana"]
[Result "0-1"]
[ECO "B32"]
[WhiteElo "1892"]
[BlackElo "1867"]
[Annotator "NA RC COMBH"]
[PlyCount "58"]
[EventDate "2022.07.23"]
[EventType "team-tourn"]
[EventRounds "7"]
[EventCountry "GER"]
[SourceTitle "playchess.com"]
[Source "ChessBase"]
[SourceQuality "1"]
[TimeControl "40/5400+30:1800+30"]

1. e4 {[%emt 0:00:02]} c5 {[%emt 0:00:04]} 2. Nf3 {[%emt 0:00:07]} Nc6 {[%emt 0:00:04]} 3. d4 {[%emt 0:00:05]} cxd4 {[%emt 0:00:04]} 4. Nxd4 {[%emt 0:00:07]} e5 {[%emt 0:00:06]} 5. Nb5 {[%emt 0:00:21]} a6 {[%emt 0:00:07]} 6. Nd6+ {[%emt 0:00:24]} Bxd6 {[%emt 0:00:07]} 7. Qxd6 {[%emt 0:00:10]} Qf6 {[%emt 0:00:05]} 8. Qd1 {[%emt 0:04:17]} Qg6 {[%emt 0:00:11]} 9. Nc3 {[%emt 0:06:08]} d5 {[%emt 0:00:08]} 10. Nxd5 {[%emt 0:12:57]} ({But not} 10. exd5 Nd4 11. Bd3 Qxg2 $15) 10... Qxe4+ {[%emt 0:00:06]} 11. Be3 {[%emt 0:19:32]} Nd4 {[%emt 0:00:14]} 12. Nc7+ {[%emt 0:03:58]} Ke7 {[%emt 0:00:04]} 13. Nxa8 {[%emt 0:03:30]} Nxc2+ {[%emt 0:00:09]} 14. Kd2 {[%emt 0:00:25]} Nxe3 {[%emt 0:01:34]} 15. fxe3 {[%emt 0:00:46]} Nf6 {[%emt 0:00:06]} 16. Bd3 {[%emt 0:07:01]} Rd8 {[%emt 0:02:04]} 17. Kc2 {[%emt 0:11:20]} Qxg2+ {[%emt 0:02:25]} 18. Qe2 $2 {[%emt 0:02:30]} (18. Qd2 Qxd2+ 19. Kxd2) 18... Qc6+ {[%emt 0:00:18]} 19. Kb3 {[%emt 0:06:07]} Be6+ {[%emt 0:00:30] Discovered Attack} 20. Bc4 {[%emt 0:00:42]} Qb5+ {[%emt 0:06:51]} 21. Ka3 $19 {[%emt 0:07:18]} Qa5+ {[%emt 0:12:56]} 22. Kb3 {[%emt 0:00:22]} b5 {[%emt 0:00:36]} 23. Kc2 {[%emt 0:06:39]} Bxc4 {[%emt 0:00:07]} 24. Qe1 {[%emt 0:01:20]} Bd3+ {[%emt 0:00:37]} 25. Kd1 {[%emt 0:02:39]} Qa4+ {[%emt 0:01:25]} 26. b3 {[%emt 0:00:40]} Qg4+ {[%emt 0:00:08]} 27. Kc1 {[%emt 0:00:32]} b4 {[%emt 0:23:25]} 28. Nb6 {[%emt 0:01:35]} Rc8+ {[%emt 0:05:13]} 29. Nxc8+ {[%emt 0:00:08]} Qxc8+ {[%emt 0:00:05]} 0-1